bitfinex/quotes_BTCUSD_20240718
["timestamp","ask_amount","ask_price","bid_price","bid_amount"]
[1721324445708,1.93772273,63839.0,63838.0,1e-06]
[1721324445942,2.14357399,63839.0,63838.0,1e-06]
[1721324446165,2.77014999,63839.0,63838.0,1e-06]
[1721324446384,2.92449956,63839.0,63838.0,1e-06]
[1721324446618,2.77014999,63839.0,63838.0,1e-06]
[1721324446837,2.74714999,63839.0,63838.0,1e-06]
[1721324447561,2.64129873,63839.0,63838.0,1e-06]
[1721324448967,2.65529873,63839.0,63838.0,1e-06]
[1721324449449,2.67829873,63839.0,63838.0,1e-06]
[1721324449667,2.8326483,63839.0,63838.0,1e-06]
[1721324450092,2.76114999,63839.0,63838.0,1e-06]
[1721324450337,2.70989736,63839.0,63838.0,1e-06]
[1721324450818,2.70989736,63839.0,63838.0,0.001001]
[1721324451049,2.69589736,63839.0,63838.0,0.001001]
[1721324451300,2.65529873,63839.0,63838.0,0.001001]
[1721324451523,2.7956483,63839.0,63838.0,1e-06]
[1721324451931,2.7956483,63839.0,63838.0,0.001001]
[1721324451932,2.8096483,63839.0,63838.0,0.001001]
[1721324452449,2.44691531,63839.0,63838.0,0.001001]
[1721324452753,2.29256574,63839.0,63838.0,0.001001]
[1721324452845,2.34201073,63839.0,63838.0,0.001001]
[1721324453294,0.04944499,63829.0,63827.0,0.009174]
[1721324453535,2.15320773,63828.0,63827.0,0.009174]
[1721324453762,2.3075573,63828.0,63827.0,0.009174]
[1721324454193,2.30700569,63828.0,63827.0,0.009174]
[1721324454663,2.2575607,63828.0,63827.0,0.009174]
[1721324454897,1.78986913,63828.0,63827.0,0.009174]
[1721324455348,1.56386913,63828.0,63827.0,0.010174]
[1721324455493,1.40948739,63828.0,63827.0,0.010174]
[1721324455942,1.40948739,63828.0,63827.0,0.009174]
[1721324456146,1.88172447,63828.0,63827.0,0.009174]
[1721324456376,1.89572447,63828.0,63827.0,0.009174]
[1721324457010,1.90972447,63828.0,63827.0,0.009174]
[1721324457215,2.57881146,63828.0,63827.0,0.009174]
[1721324457460,2.66481146,63828.0,63827.0,0.009174]
[1721324457665,2.66581146,63828.0,63827.0,0.010174]
[1721324458286,2.66481146,63828.0,63827.0,0.009174]
[1721324458549,2.67981146,63828.0,63827.0,0.010174]
[1721324458706,2.73441009,63828.0,63827.0,0.010174]
[1721324458922,3.09900472,63828.0,63827.0,0.010174]
[1721324459171,3.21449897,63828.0,63827.0,0.009174]
[1721324459390,3.21549897,63828.0,63827.0,0.010174]
[1721324460102,3.18749897,63828.0,63827.0,1e-06]
[1721324460533,3.20149897,63828.0,63827.0,1e-06]
[1721324460781,2.97915346,63828.0,63827.0,1e-06]
[1721324461016,3.07220878,63828.0,63827.0,1e-06]
[1721324461250,3.19868595,63828.0,63827.0,1e-06]
[1721324462120,3.07220878,63828.0,63827.0,1e-06]
[1721324462354,3.19857745,63828.0,63827.0,1e-06]
[1721324463029,2.88523545,63828.0,63827.0,1e-06]
[1721324463490,2.66581146,63828.0,63827.0,1e-06]
[1721324463730,3.19827455,63828.0,63827.0,1e-06]
[1721324463959,3.32712581,63828.0,63827.0,1e-06]
[1721324464166,3.3268495,63828.0,63827.0,1e-06]
[1721324465051,3.23499416,63828.0,63827.0,1e-06]
[1721324465285,3.18374153,63828.0,63827.0,1e-06]
[1721324465549,3.1291429,63828.0,63827.0,1e-06]
[1721324466209,3.18105422,63828.0,63827.0,1e-06]
[1721324466434,3.23565285,63828.0,63827.0,1e-06]
[1721324466646,3.17088133,63828.0,63827.0,1e-06]
[1721324466907,3.38907338,63828.0,63827.0,1e-06]
[1721324467162,3.2118715,63828.0,63827.0,1e-06]
[1721324467594,2.16845533,63828.0,63827.0,1e-06]
[1721324467814,2.1138567,63828.0,63827.0,1e-06]
[1721324468933,2.38930169,63828.0,63827.0,1e-06]
[1721324469156,2.70264369,63828.0,63827.0,1e-06]
[1721324469374,2.85699326,63828.0,63827.0,1e-06]
[1721324469604,2.54365126,63828.0,63827.0,1e-06]
[1721324469820,2.54277528,63828.0,63827.0,1e-06]
[1721324470482,2.85611728,63828.0,63827.0,1e-06]
[1721324471156,2.87911728,63828.0,63827.0,1e-06]
[1721324471617,2.87911728,63828.0,63827.0,0.000914]
[1721324472117,1.45950599,63827.0,63826.0,0.00819421]
[1721324472339,2.37979999,63827.0,63826.0,0.00819421]
[1721324472555,2.40279999,63827.0,63826.0,0.00819421]
[1721324472771,2.71614699,63827.0,63826.0,0.00819421]
[1721324472990,2.71669736,63827.0,63826.0,0.00819421]
[1721324473661,2.73069736,63827.0,63826.0,0.00819421]
[1721324473902,2.7081212,63827.0,63826.0,0.00819421]
[1721324474313,2.7081212,63827.0,63826.0,0.00919421]
[1721324474314,2.7091212,63827.0,63826.0,0.00919421]
[1721324474998,2.71882257,63827.0,63826.0,0.00919421]
[1721324475218,2.82472135,63827.0,63826.0,0.00919421]
[1721324475646,2.82472135,63827.0,63826.0,2.1e-07]
[1721324475647,3.03216957,63827.0,63826.0,2.1e-07]
[1721324476098,3.03254878,63827.0,63826.0,2.1e-07]
[1721324476548,3.03295075,63827.0,63826.0,2.1e-07]
[1721324477880,2.54740782,63827.0,63826.0,2.1e-07]
[1721324478163,2.11516219,63827.0,63826.0,2.1e-07]
[1721324478411,2.16460718,63827.0,63826.0,2.1e-07]
[1721324479588,2.50095418,63827.0,63826.0,2.1e-07]
[1721324482302,2.28214605,63827.0,63826.0,2.1e-07]
[1721324482527,2.64763124,63827.0,63826.0,2.1e-07]
[1721324483507,1.77298499,63822.0,63821.0,0.009174]
[1721324483718,2.45541367,63822.0,63821.0,0.009174]
[1721324484652,2.45641367,63822.0,63821.0,0.010174]
[1721324484877,2.56131825,63822.0,63821.0,0.010174]
[1721324485582,2.56140805,63822.0,63821.0,0.010174]
[1721324485808,1.87181163,63822.0,63821.0,0.010174]
[1721324486046,1.92866596,63822.0,63821.0,0.010174]
[1721324486505,1.92866905,63822.0,63821.0,0.010174]
[1721324486976,1.94266905,63822.0,63821.0,0.010174]
[1721324487203,1.98941112,63822.0,63821.0,0.010174]
[1721324487420,2.14376069,63822.0,63821.0,0.010174]
[1721324488280,2.09701862,63822.0,63821.0,0.010174]
[1721324488733,2.09642694,63822.0,63821.0,0.010174]
[1721324489159,2.14587193,63822.0,63821.0,0.010174]
[1721324489378,2.37187193,63822.0,63821.0,0.010174]
[1721324490459,2.32242694,63822.0,63821.0,0.010174]
[1721324490672,2.16807737,63822.0,63821.0,0.010174]
[1721324490907,1.94207737,63822.0,63821.0,0.010174]
[1721324491196,1.94207737,63822.0,63821.0,0.074074]
[1721324491635,1.94207737,63822.0,63821.0,0.010174]
[1721324491854,1.94260541,63822.0,63821.0,0.010174]
[1721324492065,2.09695498,63822.0,63821.0,0.010174]
[1721324493151,2.25484665,63822.0,63821.0,0.010174]
[1721324494228,3.00866264,63822.0,63821.0,0.010174]
[1721324494425,2.85077097,63822.0,63821.0,0.010174]
[1721324495073,2.85010196,63822.0,63821.0,0.010174]
[1721324495282,2.6463074,63822.0,63821.0,0.010174]
[1721324495523,2.6463242,63822.0,63821.0,0.010174]
[1721324495756,2.69576919,63822.0,63821.0,0.010174]
[1721324495983,2.69602632,63822.0,63821.0,0.010174]
[1721324496423,2.64658133,63822.0,63821.0,0.010174]
[1721324496655,2.8009309,63822.0,63821.0,0.010174]
[1721324497747,2.64658133,63822.0,63821.0,0.010174]
[1721324497964,2.69602632,63822.0,63821.0,0.010174]
[1721324499100,2.64658133,63822.0,63821.0,0.010174]
[1721324500449,2.69602632,63822.0,63821.0,0.010174]
[1721324500919,2.84242632,63822.0,63821.0,0.010174]
[1721324501146,2.99677589,63822.0,63821.0,0.010174]
[1721324501377,2.87080837,63822.0,63821.0,0.010174]
[1721324501615,2.98939674,63822.0,63821.0,0.010174]
[1721324502084,2.90869674,63822.0,63821.0,0.010174]
[1721324502303,2.84299674,63822.0,63821.0,0.010174]
[1721324502535,2.79355175,63822.0,63821.0,0.010174]
[1721324502972,2.84299674,63822.0,63821.0,0.010174]
[1721324503473,2.79355175,63822.0,63821.0,0.010174]
[1721324503972,1.93483118,63822.0,63821.0,0.152374]
[1721324504184,1.93483118,63822.0,63821.0,0.010174]
[1721324504637,1.93476245,63822.0,63821.0,0.010174]
[1721324505082,1.81620701,63822.0,63821.0,0.010174]
[1721324505314,1.93436304,63822.0,63821.0,0.010174]
[1721324505541,2.08871261,63822.0,63821.0,0.010174]
[1721324505770,2.08871241,63822.0,63821.0,0.010174]
[1721324507984,2.08882584,63822.0,63821.0,0.010174]
[1721324510871,1.88581163,63822.0,63821.0,0.010174]
[1721324511072,2.08889863,63822.0,63821.0,0.010174]
[1721324513484,2.08879733,63822.0,63821.0,0.010174]
[1721324514101,2.08886207,63822.0,63821.0,0.010174]
[1721324514314,1.97042746,63822.0,63821.0,0.010174]
[1721324514532,2.08886215,63822.0,63821.0,0.010174]
[1721324514749,1.88581163,63822.0,63821.0,0.010174]
[1721324514965,2.08880524,63822.0,63821.0,0.010174]
[1721324517605,1.93429191,63822.0,63821.0,0.010174]
[1721324520491,1.93429191,63822.0,63821.0,0.08622901]
[1721324520492,1.05316817,63822.0,63821.0,0.08622901]
[1721324520701,1.07158434,63822.0,63821.0,0.14852901]
[1721324520931,0.93096039,63822.0,63821.0,0.14852901]
[1721324522345,1.04806101,63822.0,63821.0,0.14852901]
[1721324522801,1.04706101,63822.0,63821.0,0.14752901]
[1721324523072,1.04706101,63822.0,63821.0,0.14852901]
[1721324523274,1.39049178,63822.0,63821.0,0.147974]
[1721324523526,0.98346392,63822.0,63821.0,0.009174]
[1721324523785,1.20160031,63822.0,63821.0,0.009174]
[1721324524005,1.0621151,63822.0,63821.0,0.010174]
[1721324524445,1.0711151,63822.0,63821.0,0.010174]
[1721324525141,1.53886784,63822.0,63821.0,0.010174]
[1721324526484,1.67950113,63822.0,63821.0,0.010174]
[1721324527173,1.53908056,63822.0,63821.0,0.010174]
[1721324527400,2.41721463,63822.0,63821.0,0.010174]
[1721324528120,2.59861463,63822.0,63821.0,0.010174]
[1721324528327,2.58761463,63822.0,63821.0,0.009174]
[1721324528542,2.53816964,63822.0,63821.0,0.009174]
[1721324529187,2.89198563,63822.0,63821.0,0.009174]
[1721324529634,2.71230365,63822.0,63821.0,0.009174]
[1721324529860,2.90641061,63822.0,63821.0,0.009174]
[1721324531663,2.92041061,63822.0,63821.0,0.009174]
[1721324532126,2.60703961,63822.0,63821.0,0.009174]
[1721324532625,2.55759462,63822.0,63821.0,0.009174]
[1721324533105,2.10273565,63822.0,63821.0,0.009174]
[1721324533338,1.93773565,63822.0,63821.0,0.009174]
[1721324533587,1.85812266,63822.0,63821.0,0.009174]
[1721324533830,1.93775375,63822.0,63821.0,0.009174]
[1721324536189,1.74446206,63822.0,63821.0,0.009174]
[1721324536409,2.24943568,63822.0,63821.0,0.009174]
[1721324536889,2.86702326,63822.0,63821.0,0.009174]
[1721324537617,2.86685355,63822.0,63821.0,0.009174]
[1721324537837,2.66305899,63822.0,63821.0,0.009174]
[1721324538076,2.59705899,63822.0,63821.0,0.009174]
[1721324538540,2.75487936,63822.0,63821.0,0.009174]
[1721324538774,2.59705899,63822.0,63821.0,0.009174]
[1721324539497,2.67545889,63822.0,63821.0,0.009174]
[1721324539776,2.80069324,63822.0,63821.0,0.009174]
[1721324540527,2.11832768,63822.0,63821.0,0.009174]
[1721324541961,2.43169868,63822.0,63821.0,0.009174]
[1721324542211,2.48114367,63822.0,63821.0,0.009174]
[1721324542720,2.48114367,63822.0,63821.0,1e-06]
[1721324542721,3.54543238,63822.0,63821.0,1e-06]
[1721324542986,3.62452432,63822.0,63821.0,1e-06]
[1721324543236,0.04944499,63807.0,63805.0,2e-07]
[1721324543493,2.03915803,63806.0,63805.0,2e-07]
[1721324543714,2.61661304,63806.0,63805.0,2e-07]
[1721324544193,2.80121807,63806.0,63805.0,2e-07]
[1721324544434,2.85066306,63806.0,63805.0,2e-07]
[1721324545590,2.65841808,63806.0,63805.0,2e-07]
[1721324545812,2.84300054,63806.0,63805.0,2e-07]
[1721324546248,2.85700054,63806.0,63805.0,2e-07]
[1721324546713,2.47865555,63806.0,63805.0,2e-07]
[1721324546951,2.70950054,63806.0,63805.0,2e-07]
[1721324547174,2.86709651,63806.0,63805.0,2e-07]
[1721324547413,2.86705997,63806.0,63805.0,2e-07]
[1721324547626,2.81761498,63806.0,63805.0,2e-07]
[1721324547814,1.410633,63801.0,63800.0,2e-07]
[1721324548071,1.94644014,63801.0,63800.0,2e-07]
[1721324548543,1.93212031,63801.0,63800.0,2e-07]
[1721324548799,1.85694806,63801.0,63800.0,2e-07]
[1721324549018,1.93222926,63801.0,63800.0,2e-07]
[1721324549453,1.79220726,63801.0,63800.0,2e-07]
[1721324549853,1.80620726,63801.0,63800.0,2e-07]
[1721324550067,1.96055683,63801.0,63800.0,2e-07]
[1721324550500,1.97455683,63801.0,63800.0,2e-07]
[1721324551840,1.97433463,63801.0,63800.0,2e-07]
[1721324552203,1.89927563,63801.0,63800.0,2e-07]
[1721324552481,1.97412421,63801.0,63800.0,2e-07]
[1721324552847,1.97412421,63801.0,63800.0,0.1472002]
[1721324553254,2.0906959,63801.0,63800.0,0.1472002]
[1721324554911,1.89927563,63801.0,63800.0,0.1472002]
[1721324555125,2.09038281,63801.0,63800.0,0.1472002]
[1721324556404,1.44485746,63801.0,63800.0,0.1472002]
[1721324556837,1.44485996,63801.0,63800.0,0.1472002]
[1721324557271,2.13295262,63801.0,63800.0,2e-07]
[1721324557494,2.34759761,63801.0,63800.0,2e-07]
[1721324557727,2.59654347,63801.0,63800.0,2e-07]
[1721324557942,2.61102749,63801.0,63800.0,2e-07]
[1721324558171,2.63429226,63801.0,63800.0,2e-07]
[1721324558665,2.60629226,63801.0,63800.0,2e-07]
[1721324558875,2.62029226,63801.0,63800.0,2e-07]
[1721324559094,2.63429226,63801.0,63800.0,2e-07]
[1721324560053,2.24837327,63801.0,63800.0,2e-07]
[1721324560277,2.0800237,63801.0,63800.0,2e-07]
[1721324560488,2.0940237,63801.0,63800.0,2e-07]
[1721324560702,2.0800237,63801.0,63800.0,2e-07]
[1721324561180,1.71692606,63801.0,63800.0,2e-07]
[1721324561407,1.91464674,63801.0,63800.0,2e-07]
[1721324561610,1.81965979,63801.0,63800.0,2e-07]
[1721324562027,1.74492606,63801.0,63800.0,2e-07]
[1721324562249,1.81965985,63801.0,63800.0,2e-07]
[1721324562461,1.80565985,63801.0,63800.0,2e-07]
[1721324562672,1.94600942,63801.0,63800.0,2e-07]
[1721324563784,1.96000942,63801.0,63800.0,2e-07]
[1721324564237,1.97400942,63801.0,63800.0,2e-07]
[1721324564447,1.97331105,63801.0,63800.0,2e-07]
[1721324565337,2.08111547,63801.0,63800.0,2e-07]
[1721324566851,2.08111547,63801.0,63800.0,0.0009242]
[1721324567064,2.08195547,63801.0,63800.0,0.0009242]
[1721324567493,1.90011563,63801.0,63800.0,0.0009242]
[1721324567781,2.08122748,63801.0,63800.0,0.0009242]
[1721324570964,1.66479227,63801.0,63800.0,0.0009242]
[1721324571179,1.75844125,63801.0,63800.0,0.0009242]
[1721324571393,1.66524634,63801.0,63800.0,0.0009242]
[1721324571849,1.65124634,63801.0,63800.0,0.0009242]
[1721324572301,1.77335029,63801.0,63800.0,0.0009242]
[1721324572532,1.61422586,63801.0,63800.0,0.0009242]
[1721324572754,1.53911638,63801.0,63800.0,0.07947921]
[1721324572980,1.33777234,63801.0,63800.0,0.14417921]
[1721324573193,1.42170382,63801.0,63800.0,0.14417921]
[1721324573415,1.42171488,63801.0,63800.0,0.14417921]
[1721324573671,1.50125936,63801.0,63800.0,0.14417921]
[1721324573911,1.43131823,63801.0,63800.0,0.14417921]
[1721324574150,1.42739513,63801.0,63800.0,0.14417921]
[1721324574400,1.43122252,63801.0,63800.0,0.14417921]
[1721324574845,1.38922252,63801.0,63800.0,0.14417921]
[1721324575067,1.42061902,63801.0,63800.0,0.14417921]
[1721324575280,1.35067663,63801.0,63800.0,0.14417921]
[1721324575546,1.43092853,63801.0,63800.0,0.14417921]
[1721324575751,1.41692853,63801.0,63800.0,0.14417921]
[1721324575968,1.32367663,63801.0,63800.0,0.14417921]
[1721324576407,1.44192853,63801.0,63800.0,0.1436242]
[1721324576620,1.53821719,63801.0,63800.0,0.1436242]
[1721324577271,1.53811994,63801.0,63800.0,0.1436242]
[1721324578559,1.53811994,63801.0,63800.0,0.14417921]
[1721324580313,1.61071994,63801.0,63800.0,0.14417921]
[1721324580593,1.61085291,63801.0,63800.0,0.14417921]
[1721324580801,1.44379898,63801.0,63800.0,0.14417921]
[1721324581018,1.51755294,63801.0,63800.0,0.14417921]
[1721324581462,1.51738418,63801.0,63800.0,0.14417921]
[1721324582117,1.51738418,63801.0,63800.0,0.1436242]
[1721324583057,1.51733796,63801.0,63800.0,0.1436242]
[1721324583288,1.83081196,63801.0,63800.0,0.0009242]
[1721324583507,1.9851937,63801.0,63800.0,0.0009242]
[1721324583736,2.09267085,63801.0,63800.0,0.0009242]
[1721324584379,2.14211584,63801.0,63800.0,0.0009242]
[1721324584813,2.23270914,63801.0,63800.0,0.0009242]
[1721324585225,1.9851937,63801.0,63800.0,0.0009242]
[1721324585666,2.09279826,63801.0,63800.0,0.0009242]
[1721324585889,1.91165472,63801.0,63800.0,0.0009242]
[1721324586119,2.23263497,63801.0,63800.0,0.0009242]
[1721324586353,2.22583725,63801.0,63800.0,0.0009242]
[1721324586565,2.22583725,63801.0,63800.0,2e-07]
[1721324586566,2.71684481,63801.0,63800.0,2e-07]
[1721324587659,2.70384481,63801.0,63800.0,2e-07]
[1721324587882,2.69184481,63801.0,63800.0,2e-07]
[1721324588116,2.70584481,63801.0,63800.0,2e-07]
[1721324588331,2.71984481,63801.0,63800.0,2e-07]
[1721324588534,2.69184481,63801.0,63800.0,2e-07]
[1721324588745,3.00531881,63801.0,63800.0,2e-07]
[1721324589007,2.95934324,63801.0,63800.0,2e-07]
[1721324589218,2.85614771,63801.0,63800.0,2e-07]
[1721324589637,2.92430954,63801.0,63800.0,2e-07]
[1721324589849,3.02699876,63801.0,63800.0,2e-07]
[1721324590537,3.02699876,63801.0,63784.0,0.009163]
[1721324590538,0.04944499,63785.0,63784.0,0.009163]
[1721324590930,0.04944499,63785.0,63780.0,0.009163]
[1721324590931,0.37143099,63781.0,63780.0,0.009163]
[1721324591149,2.0028671,63781.0,63780.0,0.009163]
[1721324591375,2.4164401,63781.0,63780.0,0.009163]
[1721324591595,2.49493823,63781.0,63780.0,0.009163]
[1721324592059,2.95921123,63781.0,63780.0,0.009163]
[1721324592309,3.02721577,63781.0,63780.0,0.009163]
[1721324592531,2.97777078,63781.0,63780.0,0.009163]
[1721324592762,2.98294257,63781.0,63780.0,0.009163]
[1721324593197,2.99694257,63781.0,63780.0,0.009163]
[1721324593689,2.99615034,63781.0,63780.0,0.009163]
[1721324593913,3.15342992,63781.0,63780.0,0.009163]
[1721324594362,3.01015034,63781.0,63780.0,0.009163]
[1721324594582,2.98215034,63781.0,63780.0,0.009163]
[1721324594824,2.91870535,63781.0,63780.0,0.009163]
[1721324595050,2.29423235,63781.0,63780.0,0.009163]
[1721324595276,2.29403222,63781.0,63780.0,0.009163]
[1721324595518,2.19147353,63781.0,63780.0,0.009163]
[1721324595965,2.17747353,63781.0,63780.0,0.009163]
[1721324596181,2.19147353,63781.0,63780.0,0.009163]
[1721324596396,2.3171579,63781.0,63780.0,0.009163]
[1721324596644,2.3311579,63781.0,63780.0,0.009163]
[1721324597101,2.3451579,63781.0,63780.0,0.009163]
[1721324597313,2.20547353,63781.0,63780.0,0.009163]
[1721324598473,2.20551261,63781.0,63780.0,0.009163]
[1721324598902,2.20573783,63781.0,63780.0,0.009163]
[1721324599399,2.56008761,63781.0,63780.0,0.009163]
[1721324599629,2.52321513,63781.0,63780.0,0.009163]
[1721324600306,2.42038282,63781.0,63780.0,0.009163]
[1721324600786,2.52326506,63781.0,63780.0,0.009163]
[1721324601054,2.54626506,63781.0,63780.0,0.009163]
[1721324601503,2.54632104,63781.0,63780.0,0.009163]
[1721324601724,2.44343723,63781.0,63780.0,0.009163]
[1721324601942,2.51786143,63781.0,63780.0,0.009163]
[1721324602163,2.66276143,63781.0,63780.0,0.009163]
[1721324602380,3.49033443,63781.0,63780.0,0.009163]
[1721324602825,3.17676143,63781.0,63780.0,0.009163]
[1721324603045,3.15046234,63781.0,63780.0,0.009163]
[1721324603268,3.19990733,63781.0,63780.0,0.009163]
[1721324603489,3.08833723,63781.0,63780.0,0.009163]
[1721324603713,2.51589224,63781.0,63780.0,0.009163]
[1721324603938,2.35699224,63781.0,63780.0,0.009163]
[1721324604159,2.55259224,63781.0,63780.0,0.009163]
[1721324604656,2.60147095,63781.0,63780.0,0.009163]
[1721324604891,2.58747095,63781.0,63780.0,0.009163]
[1721324605347,2.82917072,63781.0,63780.0,0.009163]
[1721324605591,2.70363347,63781.0,63780.0,0.009163]
[1721324605830,1.77425599,63775.0,63766.0,0.1421]
[1721324606141,2.32993282,63775.0,63766.0,0.1421]
[1721324606477,2.44616501,63775.0,63766.0,0.1421]
[1721324607147,2.44616501,63775.0,63763.0,0.009174]
[1721324607148,2.96963482,63775.0,63774.0,1e-06]
[1721324607377,3.07992348,63775.0,63774.0,1e-06]
[1721324608084,3.01213971,63775.0,63774.0,1e-06]
[1721324608305,2.94281174,63775.0,63774.0,1e-06]
[1721324608523,2.40221489,63775.0,63774.0,1e-06]
[1721324608744,2.40221576,63775.0,63774.0,1e-06]
[1721324608960,2.38821576,63775.0,63774.0,1e-06]
[1721324609182,2.37421576,63775.0,63774.0,1e-06]
[1721324609428,2.29527609,63775.0,63774.0,1e-06]
[1721324609654,2.43562566,63775.0,63774.0,1e-06]
[1721324610110,2.44962566,63775.0,63774.0,1e-06]
[1721324610343,2.46362566,63775.0,63774.0,1e-06]
[1721324610800,2.38105363,63775.0,63774.0,1e-06]
[1721324611033,2.26853424,63775.0,63774.0,1e-06]
[1721324611272,2.28253424,63775.0,63774.0,1e-06]
[1721324613115,2.37842857,63775.0,63774.0,1e-06]
[1721324613352,2.43596655,63775.0,63774.0,1e-06]
[1721324614056,2.43604904,63775.0,63774.0,1e-06]
[1721324614500,2.50569927,63775.0,63774.0,1e-06]
[1721324614689,2.45625428,63775.0,63774.0,1e-06]
[1721324614939,2.38660405,63775.0,63774.0,1e-06]
[1721324616265,2.43303724,63775.0,63774.0,1e-06]
[1721324616680,2.38660405,63775.0,63774.0,1e-06]
[1721324617160,2.38721163,63775.0,63774.0,1e-06]
[1721324617392,2.43364368,63775.0,63774.0,1e-06]
[1721324617621,2.43364561,63775.0,63774.0,1e-06]
[1721324618058,2.43353595,63775.0,63774.0,1e-06]
[1721324619368,2.38710197,63775.0,63774.0,1e-06]
[1721324621461,2.47997975,63775.0,63774.0,1e-06]
[1721324621677,2.38710197,63775.0,63774.0,1e-06]
[1721324621895,2.55264419,63775.0,63774.0,1e-06]
[1721324622363,2.52945061,63775.0,63774.0,1e-06]
[1721324623063,2.43654696,63775.0,63774.0,1e-06]
[1721324623280,2.52945061,63775.0,63774.0,1e-06]
[1721324623509,3.1773907,63775.0,63774.0,1e-06]
[1721324623740,3.08447388,63775.0,63774.0,1e-06]
[1721324624397,3.05647388,63775.0,63774.0,1e-06]
[1721324624619,3.07047388,63775.0,63774.0,1e-06]
[1721324624858,3.08447388,63775.0,63774.0,1e-06]
[1721324625088,1.411429,63765.0,63764.0,0.143]
[1721324625310,1.98838398,63765.0,63764.0,0.143]
[1721324626460,2.03486341,63765.0,63764.0,0.143]
[1721324626682,1.81401072,63765.0,63764.0,0.143]
[1721324626918,2.00225286,63765.0,63764.0,0.143]
[1721324627177,1.93232579,63765.0,63764.0,0.143]
[1721324627441,2.0022074,63765.0,63764.0,0.143]
[1721324627674,2.04873584,63765.0,63764.0,0.143]
[1721324627893,2.06273584,63765.0,63764.0,0.143]
[1721324628335,2.08593627,63765.0,63764.0,0.143]
[1721324629294,2.01615003,63765.0,63764.0,0.143]
[1721324629982,2.10895858,63765.0,63764.0,0.143]
[1721324631285,2.13223973,63765.0,63764.0,0.143]
[1721324631812,2.13223973,63765.0,63764.0,0.143913]
[1721324632034,2.13206137,63765.0,63764.0,0.143913]
[1721324632500,2.01565565,63765.0,63764.0,0.143913]
[1721324633167,2.00800736,63765.0,63764.0,0.143913]
[1721324634086,2.00817166,63765.0,63764.0,0.143913]
[1721324634305,2.00817166,63765.0,63764.0,0.000913]
[1721324634306,2.32182266,63765.0,63764.0,0.000913]
[1721324635424,2.30782266,63765.0,63764.0,0.000913]
[1721324635647,2.45123657,63765.0,63764.0,0.000913]
[1721324635882,2.29382266,63765.0,63764.0,0.000913]
[1721324636340,2.20709691,63765.0,63764.0,0.000913]
[1721324636564,2.47893272,63765.0,63764.0,0.000913]
[1721324636848,2.47891286,63765.0,63764.0,0.000913]
[1721324637295,2.4790577,63765.0,63764.0,0.000913]
[1721324639391,2.32148427,63765.0,63764.0,0.000913]
[1721324639610,2.15548336,63765.0,63764.0,0.000913]
[1721324639834,2.32195794,63765.0,63764.0,0.000913]
[1721324641034,1.59836728,63765.0,63764.0,0.142613]
[1721324641260,1.63790163,63765.0,63764.0,0.142613]
[1721324641489,1.63791089,63765.0,63764.0,0.142613]
[1721324641735,1.59868893,63765.0,63764.0,0.14316801]
[1721324641965,1.41760403,63765.0,63764.0,0.14316801]
[1721324642199,1.63840814,63765.0,63764.0,0.14316801]
[1721324642436,1.49831507,63765.0,63764.0,0.142613]
[1721324642669,1.44502301,63765.0,63764.0,0.142613]
[1721324642890,1.44502301,63765.0,63764.0,0.14316801]
[1721324643117,1.44496118,63765.0,63764.0,0.142613]
[1721324643335,1.3439655,63765.0,63764.0,0.142613]
[1721324643787,1.44495839,63765.0,63764.0,0.142613]
[1721324644010,1.44495839,63765.0,63764.0,0.14316801]
[1721324644011,1.3439655,63765.0,63764.0,0.14316801]
[1721324644736,1.3439655,63765.0,63764.0,0.142613]
[1721324645188,1.34379307,63765.0,63764.0,0.142613]
[1721324645406,1.46550125,63765.0,63764.0,0.142613]
[1721324645838,1.46550125,63765.0,63764.0,0.14316801]
[1721324646293,1.46570131,63765.0,63764.0,0.142613]
[1721324647876,1.44488995,63765.0,63764.0,0.14316801]
[1721324648340,1.34389538,63765.0,63764.0,0.14316801]
[1721324648583,1.34421711,63765.0,63764.0,0.14316801]
[1721324648810,1.24421711,63765.0,63764.0,0.14316801]
[1721324649051,0.93056611,63765.0,63764.0,0.14316801]
[1721324649527,0.91656611,63765.0,63764.0,0.14316801]
[1721324649756,0.93056611,63765.0,63764.0,0.14316801]
[1721324649984,0.60291511,63765.0,63764.0,0.14316801]
[1721324650210,0.14661747,63765.0,63764.0,0.29999601]
[1721324650457,0.0747145,63765.0,63764.0,0.61365201]
[1721324650682,0.0747145,63765.0,63764.0,1.02188591]
[1721324650683,0.028,63765.0,63764.0,1.02188591]
[1721324650966,0.028,63765.0,63764.0,0.92730801]
[1721324651155,0.014,63765.0,63764.0,0.92730801]
[1721324651414,0.028,63765.0,63764.0,0.92730801]
[1721324651659,0.014,63765.0,63764.0,0.92730801]
[1721324651917,0.007,63765.0,63764.0,0.92730801]
[1721324652133,0.01,63765.0,63764.0,0.92730801]
[1721324652360,0.012,63765.0,63764.0,0.92730801]
[1721324652795,0.012,63765.0,63764.0,1.08168975]
[1721324653491,0.012,63765.0,63764.0,1.44534575]
[1721324654152,0.012,63765.0,63764.0,1.39534575]
[1721324654384,0.009,63765.0,63764.0,1.39534575]
[1721324654606,0.00083,63775.0,63774.0,0.00055501]
[1721324654831,0.0475445,63775.0,63774.0,0.07995501]
[1721324655063,0.04748526,63775.0,63774.0,0.14285501]
[1721324655289,0.00083,63775.0,63774.0,0.14285501]
[1721324655758,0.157631,63775.0,63774.0,0.14285501]
[1721324655989,0.164631,63775.0,63774.0,0.14285501]
[1721324656193,0.172631,63775.0,63774.0,0.14285501]
[1721324658473,0.486233,63775.0,63774.0,0.14285501]
[1721324660133,0.486233,63775.0,63774.0,0.14201774]
[1721324661358,0.799835,63775.0,63774.0,0.14201774]
[1721324664067,1.113437,63775.0,63774.0,0.14201774]
[1721324668199,0.470476,63765.0,63764.0,0.000913]
[1721324668648,0.784127,63765.0,63764.0,0.000913]
[1721324668864,0.784127,63765.0,63764.0,0.145513]
[1721324669542,1.098778,63765.0,63764.0,0.146513]
[1721324669775,1.58374892,63765.0,63764.0,0.001913]
[1721324670251,1.6353478,63765.0,63764.0,0.001913]
[1721324670471,1.52547,63765.0,63764.0,0.001913]
[1721324670689,1.47443683,63765.0,63764.0,0.001913]
[1721324671165,1.5244851,63765.0,63764.0,0.000913]
[1721324671405,1.63882115,63765.0,63764.0,0.000913]
[1721324671630,1.74663467,63765.0,63764.0,0.000913]
[1721324671847,1.74663467,63765.0,63751.0,0.322235]
[1721324671848,0.156857,63752.0,63751.0,0.322235]
[1721324672074,0.156857,63752.0,63745.0,0.002794]